fUST/lending_fUST_20250722
["ID","MTS","AMOUNT","RATE_DAILY","PERIOD"]
[373890389,1753139675678,-460.0,0.00017868,2]
[373890390,1753139675700,-1043.28,0.00017868,2]
[373890391,1753139675721,-460.0,0.00017868,2]
[373890392,1753139675743,-1912.52,0.00017868,2]
[373890393,1753139675766,-460.0,0.00017868,2]
[373890394,1753139675788,-460.0,0.00017868,2]
[373890395,1753139675810,-460.0,0.00017868,2]
[373890396,1753139675831,-460.0,0.00017868,2]
[373890397,1753139675853,-4670.55,0.00017868,2]
[373890398,1753139675877,-460.0,0.00017868,2]
[373890399,1753139675899,-171.40784812,0.00017868,2]
[373890400,1753139675924,-460.0,0.00017868,2]
[373890401,1753139675944,-460.0,0.00017869,2]
[373890402,1753139675965,-460.0,0.00017869,2]
[373890403,1753139675985,-460.0,0.00017869,2]
[373890404,1753139676006,-460.0,0.00017869,2]
[373890405,1753139676025,-460.0,0.00017869,2]
[373890406,1753139676046,-460.0,0.00017869,2]
[373890407,1753139676067,-460.0,0.00017869,2]
[373890408,1753139676089,-500.0,0.00017869,2]
[373890409,1753139676111,-460.0,0.00017869,2]
[373890410,1753139676132,-460.0,0.00017869,2]
[373890411,1753139676154,-680.95,0.00017869,2]
[373890412,1753139676174,-460.0,0.00017869,2]
[373890413,1753139676194,-460.0,0.00017869,2]
[373890414,1753139676214,-460.0,0.00017869,2]
[373890415,1753139676235,-1209.97,0.00017869,2]
[373890416,1753139676257,-619.75,0.00017869,2]
[373890417,1753139676278,-460.0,0.00017869,2]
[373890418,1753139676299,-460.0,0.00017869,2]
[373890419,1753139676323,-578.03,0.00017869,2]
[373890420,1753139676345,-460.0,0.00017869,2]
[373890421,1753139676366,-460.0,0.00017869,2]
[373890422,1753139676388,-460.0,0.00017869,2]
[373890423,1753139676410,-460.0,0.00017869,2]
[373890424,1753139676432,-460.0,0.00017869,2]
[373890425,1753139676453,-460.0,0.00017869,2]
[373890426,1753139676473,-500.0,0.00017869,2]
[373890427,1753139676495,-460.0,0.00017869,2]
[373890428,1753139676515,-460.0,0.00017869,2]
[373890429,1753139676535,-460.0,0.00017869,2]
[373890430,1753139676555,-460.0,0.00017869,2]
[373890431,1753139676576,-460.0,0.00017869,2]
[373890432,1753139676596,-460.0,0.00017869,2]
[373890433,1753139676616,-460.0,0.00017869,2]
[373890434,1753139676637,-460.0,0.00017869,2]
[373890435,1753139676659,-460.0,0.00017869,2]
[373890436,1753139676681,-599.79,0.00017869,2]
[373890437,1753139676703,-460.0,0.00017869,2]
[373890438,1753139676725,-460.0,0.00017869,2]
[373890439,1753139676745,-460.0,0.00017869,2]
[373890440,1753139676766,-460.0,0.00017869,2]
[373890441,1753139676789,-460.0,0.00017869,2]
[373890442,1753139676811,-460.0,0.00017869,2]
[373890443,1753139676935,-460.0,0.00017869,2]
[373890444,1753139676958,-460.0,0.00017869,2]
[373890445,1753139676977,-460.0,0.00017869,2]
[373890446,1753139676999,-863.03,0.00017869,2]
[373890447,1753139677020,-460.0,0.00017869,2]
[373890448,1753139677041,-460.0,0.00017869,2]
[373890449,1753139677062,-460.0,0.00017869,2]
[373890450,1753139677083,-500.0,0.00017869,2]
[373890451,1753139677106,-1457.02,0.0001787,2]
[373890452,1753139677128,-460.0,0.0001787,2]
[373890453,1753139677149,-779.8,0.0001787,2]
[373890454,1753139677170,-1328.28,0.0001787,2]
[373890455,1753139677190,-317.6,0.0001787,2]
[373890456,1753139677211,-500.0,0.0001787,2]
[373890457,1753139677232,-500.0,0.0001787,2]
[373890458,1753139677253,-500.0,0.00017871,2]
[373890459,1753139677275,-196.87426243,0.00017871,2]
[373890460,1753139834838,1980.0,0.00024657,60]
[373890461,1753140245850,152.674666,0.00023,30]
[373890462,1753140352130,-295.496854,0.00016868,2]
[373890463,1753140352157,-150.0,0.0001749,2]
[373890464,1753140352179,-300.0,0.00017766,2]
[373890465,1753140352201,-305.99282061,0.00017766,2]
[373890507,1753140632530,-150.0,0.00017585,2]
[373890508,1753140632540,-1200.0,0.00017766,2]
[373890509,1753140632550,-300.0,0.00017766,2]
[373890510,1753140632559,-1049.81882852,0.00017766,2]
[373890511,1753140632577,-150.18117148,0.00017766,2]
[373890512,1753140632587,-460.0,0.00017766,2]
[373890513,1753140632596,-460.0,0.00017766,2]
[373890514,1753140632605,-460.0,0.00017766,2]
[373890515,1753140632615,-460.0,0.00017767,2]
[373890516,1753140632625,-460.0,0.00017767,2]
[373890518,1753140632635,-72.52573845,0.00017767,2]
[373890520,1753140632646,-387.47426155,0.00017767,2]
[373890522,1753140632655,-422.2976629,0.00017767,2]
[373890524,1753140632682,-37.7023371,0.00017767,2]
[373890526,1753140632691,-548.40577261,0.00017767,2]
[373890527,1753140632701,-290.36199394,0.00017767,2]
[373890528,1753140632716,-169.63800606,0.00017767,2]
[373890530,1753140632726,-460.0,0.00017767,2]
[373890532,1753140632735,-460.0,0.00017767,2]
[373890534,1753140632745,-460.0,0.00017767,2]
[373890536,1753140632755,-473.8,0.00017767,2]
[373890538,1753140632764,-577.47516816,0.00017767,2]
[373890541,1753140632774,-460.0,0.00017767,2]
[373890542,1753140632783,-460.0,0.00017767,2]
[373890544,1753140632792,-466.43451082,0.00017767,2]
[373890545,1753140632802,-880.42822623,0.00017767,2]
[373890761,1753140638520,-3062.35177377,0.00017767,2]
[373890762,1753140638530,-460.0,0.00017767,2]
[373890763,1753140638540,-1045.76,0.00017767,2]
[373890764,1753140638549,-460.0,0.00017767,2]
[373890765,1753140638558,-615.08,0.00017767,2]
[373890766,1753140638567,-460.0,0.00017767,2]
[373890767,1753140638577,-460.0,0.00017767,2]
[373890768,1753140638586,-3770.82,0.00017767,2]
[373890769,1753140638596,-460.0,0.00017767,2]
[373890770,1753140638605,-460.0,0.00017767,2]
[373890771,1753140638614,-460.0,0.00017767,2]
[373890772,1753140638623,-460.0,0.00017767,2]
[373890773,1753140638634,-480.36,0.00017767,2]
[373890774,1753140638643,-460.0,0.00017767,2]
[373890775,1753140638653,-460.0,0.00017767,2]
[373890776,1753140638662,-1540.02,0.00017767,2]
[373890777,1753140638671,-568.51,0.00017767,2]
[373890778,1753140638681,-6763.12,0.00017767,2]
[373890779,1753140638691,-747.93,0.00017767,2]
[373890780,1753140638701,-2563.4,0.00017767,2]
[373890781,1753140638711,-460.0,0.00017767,2]
[373890782,1753140638720,-460.0,0.00017767,2]
[373890783,1753140638729,-632.45,0.00017767,2]
[373890784,1753140638739,-999.79,0.00017767,2]
[373890785,1753140638749,-460.0,0.00017767,2]
[373890786,1753140638758,-500.0,0.00017768,2]
[373890787,1753140638767,-460.0,0.00017768,2]
[373890788,1753140638776,-460.0,0.00017768,2]
[373890789,1753140638786,-460.0,0.00017768,2]
[373890790,1753140638795,-460.0,0.00017768,2]
[373890791,1753140638804,-460.0,0.00017768,2]
[373890792,1753140638813,-460.0,0.00017768,2]
[373890793,1753140638823,-460.0,0.00017768,2]
[373890794,1753140638832,-460.0,0.00017768,2]
[373890795,1753140638841,-891.32,0.00017768,2]
[373890796,1753140638851,-460.0,0.00017768,2]
[373890797,1753140638860,-460.0,0.00017768,2]
[373890798,1753140638869,-460.0,0.00017768,2]
[373890799,1753140638879,-460.0,0.00017768,2]
[373890800,1753140638889,-460.0,0.00017768,2]
[373890801,1753140638898,-477.98,0.00017768,2]
[373890802,1753140638907,-460.0,0.00017768,2]
[373890803,1753140638917,-460.0,0.00017768,2]
[373890804,1753140638927,-500.0,0.00017768,2]
[373890805,1753140638936,-500.0,0.00017768,2]
[373890806,1753140638946,-460.0,0.00017768,2]
[373890807,1753140638956,-240.0,0.00017768,2]
[373890808,1753140638967,-460.0,0.00017768,2]
[373890809,1753140638977,-460.0,0.00017768,2]
[373890810,1753140638988,-460.0,0.00017768,2]
[373890811,1753140638998,-460.0,0.00017768,2]
[373890812,1753140639008,-460.0,0.00017768,2]
[373890813,1753140639017,-1337.23,0.00017768,2]
[373890814,1753140639026,-460.0,0.00017768,2]
[373890815,1753140639036,-460.0,0.00017768,2]
[373890816,1753140639046,-330.61426934,0.00017768,2]
[373890817,1753140639055,-460.0,0.00017768,2]
[373890818,1753140639065,-460.0,0.00017768,2]
[373890819,1753140639075,-460.0,0.00017768,2]
[373890820,1753140639084,-460.0,0.00017768,2]
[373890821,1753140639093,-460.0,0.00017768,2]
[373890822,1753140639102,-460.0,0.00017768,2]
[373890823,1753140639112,-460.0,0.00017768,2]
[373890824,1753140639121,-460.0,0.00017768,2]
[373890825,1753140639132,-460.0,0.00017768,2]
[373890826,1753140639142,-460.0,0.00017768,2]
[373890827,1753140639151,-460.0,0.00017768,2]
[373890828,1753140639160,-460.0,0.00017768,2]
[373890829,1753140639170,-460.0,0.00017768,2]
[373890830,1753140639179,-460.0,0.00017768,2]
[373890831,1753140639189,-460.0,0.00017768,2]
[373890832,1753140639199,-460.0,0.00017768,2]
[373890833,1753140639208,-460.0,0.00017768,2]
[373890834,1753140639217,-463.02392968,0.00017768,2]
[373890835,1753140639227,-500.0,0.00017769,2]
[373890836,1753140639238,-500.0,0.00017769,2]
[373890837,1753140639248,-500.0,0.00017769,2]
[373890838,1753140639259,-500.0,0.00017769,2]
[373890839,1753140639271,-349.22607201,0.00017769,2]
[373890840,1753140639281,-859.44,0.0001786,3]
[373890841,1753140639290,-572.96,0.00017862,3]
[373890842,1753140639300,-286.48,0.00017862,3]
[373890843,1753140639310,-500.0,0.00017865,2]
[373890844,1753140639320,-500.0,0.00017865,2]
[373890845,1753140639330,-500.0,0.00017865,2]
[373890846,1753140639340,-397.59519644,0.00017865,2]
[373890847,1753140639350,-500.0,0.00017865,2]
[373890848,1753140639359,-500.0,0.00017865,2]
[373890849,1753140639368,-500.0,0.00017865,2]
[373890850,1753140639378,-500.0,0.00017865,2]
[373890851,1753140639389,-500.0,0.00017865,2]
[373890852,1753140639398,-500.0,0.00017865,2]
[373890853,1753140639408,-277.78364519,0.00017865,2]
[373890854,1753140639417,-500.0,0.00017865,2]
[373890855,1753140639426,-600.94095254,0.00017865,2]
[373890856,1753140639436,-500.0,0.00017865,2]
[373890857,1753140639445,-500.0,0.00017865,2]
[373890858,1753140639455,-500.0,0.00017865,2]
[373890859,1753140639468,-500.0,0.00017865,2]
[373890860,1753140639479,-500.0,0.00017865,2]
[373890861,1753140639489,-500.0,0.00017865,2]
[373890862,1753140639498,-500.0,0.00017865,2]
[373890863,1753140639507,-500.0,0.00017865,2]
[373890864,1753140639517,-500.0,0.00017865,2]
[373890865,1753140639526,-500.0,0.00017865,2]
[373890866,1753140639535,-500.0,0.00017865,2]
[373890867,1753140639545,-500.0,0.00017865,2]
[373890868,1753140639554,-500.0,0.00017865,2]
[373890869,1753140639564,-500.0,0.00017865,2]
[373890870,1753140639574,-636.29054665,0.00017865,2]
[373890871,1753140639583,-500.0,0.00017865,2]
[373890872,1753140639593,-500.0,0.00017865,2]
[373890873,1753140639602,-500.0,0.00017865,2]
[373890874,1753140639611,-500.0,0.00017865,2]
[373890875,1753140639624,-500.0,0.00017865,2]
[373890876,1753140639633,-500.0,0.00017865,2]
[373890877,1753140639642,-460.0,0.00017866,2]
[373890878,1753140639651,-460.36961902,0.00017866,2]
[373890879,1753140639660,-460.0,0.00017866,2]
[373890880,1753140639670,-460.0,0.00017866,2]
[373890881,1753140639679,-460.0,0.00017866,2]
[373890882,1753140639688,-460.0,0.00017866,2]
[373890883,1753140639698,-460.0,0.00017866,2]
[373890884,1753140639707,-460.0,0.00017866,2]
[373890885,1753140639716,-447.26943736,0.00017866,2]
[373890886,1753140639825,-460.0,0.00017866,2]
[373890887,1753140639835,-460.0,0.00017866,2]
[373890888,1753140639844,-460.0,0.00017866,2]
[373890889,1753140639854,-460.0,0.00017866,2]
[373890890,1753140639864,-160.38410983,0.00017866,2]
[373890891,1753140639874,-404.08613684,0.00017866,2]
[373890892,1753140639884,-460.0,0.00017866,2]
[373890893,1753140639893,-460.0,0.00017866,2]
[373890894,1753140639903,-460.0,0.00017866,2]
[373890895,1753140639913,-460.0,0.00017866,2]
[373890896,1753140639923,-313.47,0.00017866,2]
[373890897,1753140639932,-460.0,0.00017866,2]
[373890898,1753140639942,-460.0,0.00017866,2]
[373890899,1753140639951,-460.0,0.00017866,2]
[373890900,1753140639961,-460.0,0.00017866,2]
[373890901,1753140639970,-460.0,0.00017866,2]
[373890902,1753140639979,-205.3792598,0.00017866,2]
[373890903,1753140639988,-460.0,0.00017866,2]
[373890904,1753140639998,-460.0,0.00017866,2]
[373890905,1753140640008,-460.0,0.00017866,2]
[373890906,1753140640016,-460.0,0.00017866,2]
[373890907,1753140640026,-460.0,0.00017866,2]
[373890908,1753140640035,-460.0,0.00017866,2]
[373890909,1753140640044,-460.0,0.00017866,2]
[373890910,1753140640053,-460.0,0.00017866,2]
[373890911,1753140640063,-460.0,0.00017866,2]
[373890912,1753140640072,-460.0,0.00017866,2]
[373890913,1753140640081,-460.0,0.00017866,2]
[373890914,1753140640091,-460.0,0.00017866,2]
[373890915,1753140640100,-460.0,0.00017866,2]
[373890916,1753140640109,-475.17,0.00017866,2]
[373890917,1753140640119,-460.0,0.00017866,2]
[373890918,1753140640128,-460.0,0.00017866,2]
[373890919,1753140640137,-460.0,0.00017866,2]
[373890920,1753140640147,-608.05,0.00017866,2]
[373890921,1753140640156,-714.49,0.00017866,2]
[373890922,1753140640165,-460.0,0.00017866,2]
[373890923,1753140640175,-460.0,0.00017866,2]
[373890924,1753140640184,-460.0,0.00017866,2]
[373890925,1753140640193,-460.0,0.00017866,2]
[373890926,1753140640202,-460.0,0.00017866,2]
[373890928,1753140640212,-460.0,0.00017866,2]
[373890930,1753140640221,-213.99329935,0.00017866,2]
[373890932,1753140640231,-473.15,0.00017866,2]
[373890934,1753140640240,-460.0,0.00017866,2]
[373890936,1753140640250,-995.06,0.00017866,2]
[373890938,1753140640263,-460.0,0.00017866,2]
[373890940,1753140640272,-460.0,0.00017866,2]
[373890942,1753140640286,-460.0,0.00017866,2]
[373890944,1753140640296,-460.0,0.00017866,2]
[373890946,1753140640306,-460.0,0.00017866,2]
[373890948,1753140640316,-460.0,0.00017866,2]
[373890950,1753140640325,-1002.52,0.00017866,2]
[373890952,1753140640335,-460.0,0.00017866,2]
[373890954,1753140640345,-904.47,0.00017866,2]
[373890956,1753140640354,-461.6212784,0.00017866,2]
[373890958,1753140640363,-842.93,0.00017866,2]
[373890960,1753140640373,-460.0,0.00017866,2]
[373890962,1753140640382,-460.0,0.00017866,2]
[373890964,1753140640391,-1466.53,0.00017866,2]
[373890965,1753140640400,-460.0,0.00017866,2]
[373890968,1753140640410,-442.57590828,0.00017866,2]
[373890971,1753140640419,-460.0,0.00017866,2]
[373890974,1753140640429,-462.19033956,0.00017866,2]
[373890977,1753140640438,-460.0,0.00017866,2]
[373890980,1753140640448,-460.0,0.00017866,2]
[373890983,1753140640457,-460.0,0.00017866,2]
[373890986,1753140640467,-460.0,0.00017866,2]
[373890989,1753140640476,-460.0,0.00017866,2]
[373890992,1753140640486,-462.94500452,0.00017866,2]
[373890995,1753140640495,-460.0,0.00017866,2]
[373890998,1753140640504,-460.0,0.00017866,2]
[373891001,1753140640515,-462.24747764,0.00017866,2]
[373891004,1753140640525,-460.0,0.00017866,2]
[373891007,1753140640534,-460.0,0.00017866,2]
[373891010,1753140640544,-460.0,0.00017866,2]
[373891013,1753140640553,-460.0,0.00017866,2]
[373891015,1753140640563,-460.0,0.00017866,2]
[373891017,1753140640572,-460.0,0.00017866,2]
[373891019,1753140640581,-460.0,0.00017866,2]
[373891022,1753140640591,-460.0,0.00017866,2]
[373891025,1753140640601,-460.0,0.00017866,2]
[373891028,1753140640610,-460.0,0.00017866,2]
[373891031,1753140640620,-256.71433317,0.00017866,2]
[373891034,1753140640629,-460.0,0.00017866,2]
[373891037,1753140640639,-460.0,0.00017866,2]
[373891040,1753140640649,-681.98,0.00017866,2]
[373891043,1753140640658,-460.0,0.00017866,2]
[373891046,1753140640667,-460.0,0.00017866,2]
[373891049,1753140640676,-460.0,0.00017866,2]
[373891052,1753140640685,-1019.82,0.00017866,2]
[373891055,1753140640697,-460.0,0.00017866,2]
[373891058,1753140640707,-1245.38,0.00017866,2]
[373891060,1753140640717,-460.0,0.00017866,2]
[373891062,1753140640726,-700.42,0.00017866,2]
[373891064,1753140640735,-681.52,0.00017866,2]
[373891066,1753140640744,-460.0,0.00017866,2]
[373891068,1753140640753,-519.27,0.00017866,2]
[373891070,1753140640762,-460.0,0.00017866,2]
[373891072,1753140640771,-460.0,0.00017867,2]
[373891074,1753140640781,-460.0,0.00017867,2]
[373891076,1753140640791,-460.0,0.00017867,2]
[373891078,1753140640800,-517.92026842,0.00017867,2]
[373891080,1753140640810,-460.0,0.00017867,2]
[373891082,1753140640819,-460.0,0.00017867,2]
[373891084,1753140640829,-290.78393118,0.00017867,2]
[373891086,1753140640839,-460.0,0.00017868,2]
[373891088,1753140640848,-460.0,0.00017868,2]
[373891090,1753140640857,-460.0,0.00017868,2]
[373891092,1753140640867,-1750.53,0.00017868,2]
[373891094,1753140640876,-563.81,0.00017868,2]
[373891096,1753140640886,-563.81,0.00017868,2]
[373891098,1753140640895,-563.81,0.00017868,2]
[373891100,1753140640905,-563.81,0.00017868,2]
[373891102,1753140640914,-563.81,0.00017868,2]
[373891104,1753140640924,-1045.06,0.00017868,2]
[373891106,1753140640933,-460.0,0.00017868,2]
[373891108,1753140640942,-460.0,0.00017868,2]
[373891110,1753140640952,-1642.26,0.00017868,2]
[373891112,1753140640961,-460.0,0.00017868,2]
[373891114,1753140640970,-462.94100938,0.00017869,2]
[373891115,1753140640979,-460.0,0.00017869,2]
[373891118,1753140640988,-460.0,0.00017869,2]
[373891120,1753140640998,-460.0,0.00017869,2]
[373891122,1753140641007,-460.0,0.00017869,2]
[373891124,1753140641017,-460.0,0.00017869,2]
[373891125,1753140641027,-460.0,0.00017869,2]
[373891127,1753140641036,-460.0,0.00017869,2]
[373891129,1753140641045,-460.0,0.00017869,2]
[373891131,1753140641055,-460.0,0.00017869,2]
[373891133,1753140641065,-460.0,0.00017869,2]
[373891135,1753140641074,-6853.84,0.00017869,2]
[373891137,1753140641084,-1820.72,0.00017869,2]
[373891140,1753140641093,-460.0,0.00017869,2]
[373891142,1753140641102,-2086.57,0.00017869,2]
[373891143,1753140641111,-563.81,0.0001787,2]
[373891145,1753140641121,-563.81,0.0001787,2]
[373891147,1753140641130,-3241.4,0.0001787,2]
[373891150,1753140641141,-460.0,0.0001787,2]
[373891151,1753140641150,-611.95,0.0001787,2]
[373891153,1753140641159,-460.0,0.0001787,2]
[373891155,1753140641169,-563.81,0.00017871,2]
[373891158,1753140641179,-563.81,0.00017871,2]
[373891160,1753140641188,-563.81,0.00017871,2]
[373891162,1753140641198,-1986.06,0.00017872,2]
[373891163,1753140641207,-460.0,0.00017872,2]
[373891166,1753140641217,-460.0,0.00017872,2]
[373891168,1753140641226,-500.0,0.00017873,2]
[373891170,1753140641236,-2373.76,0.00017884,2]
[373891172,1753140641245,-1158.85,0.00017884,2]
[373891174,1753140641254,-563.81,0.00017887,2]
[373891176,1753140641268,-563.81,0.0001789,2]
[373891178,1753140641277,-198.0,0.00017894,2]
[373891180,1753140641286,-1172.0,0.00017894,2]
[373891182,1753140641295,-151.0,0.00017894,2]
[373891184,1753140641306,-151.0,0.00017894,2]
[373891186,1753140641315,-500.0,0.00017894,2]
[373891188,1753140641324,-151.56803976,0.00017894,2]
[373891190,1753140641335,-151.0,0.00017894,2]
[373891192,1753140641345,-151.0,0.00017894,2]
[373891194,1753140641354,-500.0,0.00017894,2]
[373891196,1753140641363,-866.0,0.00017894,2]
[373891198,1753140641372,-151.0,0.00017894,2]
[373891200,1753140641381,-151.0,0.00017894,2]
[373891202,1753140641390,-151.0,0.00017894,2]
[373891204,1753140641399,-151.0,0.00017894,2]
[373891206,1753140641408,-158.57599244,0.00017894,2]
[373891208,1753140641418,-198.0,0.00017894,2]
[373891209,1753140641427,-151.0,0.00017894,2]
[373891211,1753140641437,-198.0,0.00017894,2]
[373891213,1753140641446,-151.0,0.00017894,2]
[373891215,1753140641455,-8389.27005462,0.000179,2]
[373891217,1753140641464,-3771.58945438,0.0001793,2]
[373891220,1753140641473,-11356.2892097,0.00017941,2]
[373891231,1753140641567,-563.81,0.00018024,2]
[373891233,1753140641577,-563.81,0.00018024,2]
[373891235,1753140641586,-3801.642,0.00018025,2]
[373891237,1753140641596,-151.0,0.00018025,2]
[373891239,1753140641605,-151.0,0.00018025,2]
[373891241,1753140641614,-151.0,0.00018025,2]
[373891243,1753140641623,-151.0,0.00018025,2]
[373891245,1753140641632,-151.0,0.00018025,2]
[373891247,1753140641642,-215.0738,0.00018025,2]
[373891249,1753140641651,-151.0,0.00018025,2]
[373891251,1753140641660,-151.0,0.00018025,2]
[373891253,1753140641669,-151.0,0.00018025,2]
[373891255,1753140641678,-151.0,0.00018025,2]
[373891257,1753140641687,-151.0,0.00018025,2]
[373891259,1753140641696,-151.0,0.00018025,2]
[373891261,1753140641705,-151.5503968,0.00018025,2]
[373891263,1753140641715,-151.0,0.00018025,2]
[373891265,1753140641723,-151.0,0.00018025,2]
[373891267,1753140641733,-151.0,0.00018025,2]
[373891269,1753140641742,-151.0,0.00018025,2]
[373891270,1753140641751,-151.0,0.00018025,2]
[373891273,1753140641761,-151.0,0.00018025,2]
[373891274,1753140641770,-151.0,0.00018025,2]
[373891276,1753140641779,-151.0,0.00018025,2]
[373891278,1753140641789,-151.0,0.00018025,2]
[373891280,1753140641798,-151.0,0.00018025,2]
[373891282,1753140641807,-151.0,0.00018025,2]
[373891285,1753140641817,-151.0,0.00018025,2]
[373891287,1753140641826,-252.41246058,0.00018025,2]
[373891289,1753140641835,-151.0,0.00018025,2]
[373891291,1753140641845,-151.0,0.00018025,2]
[373891293,1753140641854,-151.0,0.00018025,2]
[373891295,1753140641863,-151.0,0.00018025,2]
[373891297,1753140641872,-151.0,0.00018025,2]
[373891299,1753140641881,-151.0,0.00018025,2]
[373891301,1753140641891,-151.0,0.00018025,2]
[373891303,1753140641900,-151.0,0.00018025,2]
[373891305,1753140641910,-151.0,0.00018025,2]
[373891307,1753140641919,-186.032,0.00018025,2]
[373891309,1753140641928,-186.032,0.00018025,2]
[373891311,1753140641937,-151.0,0.00018025,2]
[373891312,1753140641947,-151.0,0.00018025,2]
[373891314,1753140641956,-25000.0,0.0001803,2]
[373891317,1753140641965,-7678.86280694,0.0001803,2]
[373891319,1753140641974,-460.0,0.0001804,2]
[373891321,1753140641983,-460.0,0.0001804,2]
[373891322,1753140641993,-577.14042864,0.00018041,2]
[373891325,1753140642002,-426.26516037,0.00018041,2]
[373891327,1753140642011,-465.05905235,0.00018041,2]
[373891329,1753140642020,-460.0,0.00018041,2]
[373891331,1753140642029,-439.23399628,0.00018041,2]
[373891333,1753140642039,-460.0,0.00018041,2]
[373891335,1753140642048,-460.0,0.00018041,2]
[373891337,1753140642057,-460.0,0.00018041,2]
[373891339,1753140642066,-460.0,0.00018041,2]
[373891340,1753140642076,-460.0,0.00018041,2]
[373891342,1753140642085,-460.0,0.00018041,2]
[373891344,1753140642095,-460.0,0.00018041,2]
[373891347,1753140642105,-460.0,0.00018041,2]
[373891349,1753140642114,-460.0,0.00018041,2]
[373891351,1753140642122,-460.0,0.00018041,2]
[373891353,1753140642132,-460.0,0.00018041,2]
[373891355,1753140642141,-498.17510817,0.00018041,2]
[373891356,1753140642150,-460.0,0.00018041,2]
[373891359,1753140642160,-460.0,0.00018041,2]
[373891361,1753140642169,-460.0,0.00018041,2]
[373891363,1753140642178,-460.0,0.00018041,2]
[373891365,1753140642188,-460.0,0.00018041,2]
[373891366,1753140642197,-460.0,0.00018041,2]
[373891368,1753140642206,-460.0,0.00018041,2]
[373891370,1753140642215,-460.0,0.00018041,2]
[373891372,1753140642224,-460.0,0.00018041,2]
[373891375,1753140642233,-460.0,0.00018041,2]
[373891377,1753140642243,-460.0,0.00018041,2]
[373891379,1753140642252,-460.0,0.00018041,2]
[373891381,1753140642265,-460.0,0.00018041,2]
[373891383,1753140642274,-460.0,0.00018041,2]
[373891385,1753140642283,-460.0,0.00018041,2]
[373891387,1753140642292,-460.0,0.00018041,2]
[373891389,1753140642303,-460.0,0.00018041,2]
[373891391,1753140642313,-460.0,0.00018041,2]
[373891393,1753140642322,-460.0,0.00018041,2]
[373891395,1753140642332,-460.0,0.00018041,2]
[373891397,1753140642341,-460.0,0.00018041,2]
[373891399,1753140642351,-460.0,0.00018041,2]
[373891401,1753140642360,-460.0,0.00018041,2]
[373891403,1753140642369,-460.0,0.00018041,2]
[373891405,1753140642379,-460.0,0.00018041,2]
[373891407,1753140642389,-460.0,0.00018041,2]
[373891409,1753140642398,-460.0,0.00018041,2]
[373891411,1753140642407,-460.0,0.00018041,2]
[373891413,1753140642416,-460.0,0.00018041,2]
[373891415,1753140642426,-460.0,0.00018041,2]
[373891417,1753140642435,-405.44545594,0.00018041,2]
[373891419,1753140642445,-460.0,0.00018041,2]
[373891421,1753140642455,-460.0,0.00018041,2]
[373891423,1753140642464,-460.0,0.00018041,2]
[373891425,1753140642474,-460.0,0.00018041,2]